[Event "Titled Tuesday Blitz May 2 Late 2023"]
[White "Liu, Eric"]
[Black "Tsotsonava, Elene"]
[WhiteFideId "30960240"]
[BlackFideId "13615939"]
[WhiteElo "2094"]
[BlackElo "1829"]
[Result "0-1"]
[Round "03"]
[TimeControl "180+2"]
[Date "2023.05.02"]
[WhiteClock "0:00:55"]
[BlackClock "0:02:12"]

1. b3 {[%clk 0:03:00]}  e5 {[%clk 0:02:59]} 2. Bb2 {[%clk 0:03:01]}  Nc6 {[%clk 0:02:59]} 3. e3 {[%clk 0:03:02]}  Nf6 {[%clk 0:02:59]} 4. Be2 {[%clk 0:03:02]}  d5 {[%clk 0:02:58]} 5. h4 {[%clk 0:03:02]}  h5 {[%clk 0:02:56]} 6. Nf3 {[%clk 0:03:01]}  e4 {[%clk 0:02:57]} 7. Ng5 {[%clk 0:03:01]}  Be7 {[%clk 0:02:57]} 8. d3 {[%clk 0:03:00]}  Bf5 {[%clk 0:02:56]} 9. Nd2 {[%clk 0:02:56]}  Qd7 {[%clk 0:02:50]} 10. Rc1 {[%clk 0:02:26]}  Nb4 {[%clk 0:02:41]} 11. dxe4 {[%clk 0:02:10]}  Nxe4 {[%clk 0:02:38]} 12. Ndxe4 {[%clk 0:02:09]}  dxe4 {[%clk 0:02:32]} 13. Qxd7+ {[%clk 0:02:10]}  Bxd7 {[%clk 0:02:32]} 14. a3 {[%clk 0:02:05]}  Bxg5 {[%clk 0:02:28]} 15. hxg5 {[%clk 0:02:03]}  Nd5 {[%clk 0:02:26]} 16. Bxg7 {[%clk 0:02:03]}  Rg8 {[%clk 0:02:26]} 17. Bf6 {[%clk 0:01:59]}  Nxf6 {[%clk 0:02:23]} 18. gxf6 {[%clk 0:02:00]}  Rxg2 {[%clk 0:02:22]} 19. Kf1 {[%clk 0:02:00]}  Rg5 {[%clk 0:02:18]} 20. Rxh5 {[%clk 0:02:00]}  Rxh5 {[%clk 0:02:18]} 21. Bxh5 {[%clk 0:02:00]}  Bh3+ {[%clk 0:02:16]} 22. Ke2 {[%clk 0:02:00]}  O-O-O {[%clk 0:02:13]} 23. Rd1 {[%clk 0:01:53]}  Rh8 {[%clk 0:02:08]} 24. Rd5 {[%clk 0:01:26]}  Rxh5 {[%clk 0:02:07]} 25. Rd4 {[%clk 0:01:26]}  Bg4+ {[%clk 0:02:06]} 26. Kd2 {[%clk 0:01:26]}  Bf3 {[%clk 0:02:06]} 27. Ra4 {[%clk 0:00:59]}  a6 {[%clk 0:02:05]} 28. Rd4 {[%clk 0:00:59]}  Rf5 {[%clk 0:02:05]} 29. c4 {[%clk 0:00:59]}  Rxf6 {[%clk 0:02:05]} 30. Kc3 {[%clk 0:00:57]}  Rd6 {[%clk 0:02:05]} 31. c5 {[%clk 0:00:58]}  Rxd4 {[%clk 0:02:05]} 32. Kxd4 {[%clk 0:00:59]}  Kd8 {[%clk 0:02:06]} 33. Ke5 {[%clk 0:00:59]}  Ke7 {[%clk 0:02:06]} 34. b4 {[%clk 0:01:00]}  c6 {[%clk 0:02:06]} 35. a4 {[%clk 0:01:00]}  f6+ {[%clk 0:02:06]} 36. Kf5 {[%clk 0:00:59]}  Kf7 {[%clk 0:02:06]} 37. a5 {[%clk 0:00:59]}  Ke7 {[%clk 0:02:06]} 38. Kg6 {[%clk 0:00:48]}  Ke6 {[%clk 0:02:06]} 39. Kg7 {[%clk 0:00:49]}  Kd5 {[%clk 0:02:06]} 40. Kxf6 {[%clk 0:00:50]}  Kc4 {[%clk 0:02:06]} 41. Ke5 {[%clk 0:00:50]}  Kxb4 {[%clk 0:02:06]} 42. Kd6 {[%clk 0:00:51]}  Kxa5 {[%clk 0:02:06]} 43. Kc7 {[%clk 0:00:51]}  Kb5 {[%clk 0:02:07]} 44. Kxb7 {[%clk 0:00:52]}  a5 {[%clk 0:02:08]} 45. Kc7 {[%clk 0:00:52]}  a4 {[%clk 0:02:09]} 46. Kd6 {[%clk 0:00:53]}  a3 {[%clk 0:02:10]} 47. Ke5 {[%clk 0:00:54]}  a2 {[%clk 0:02:11]} 48. Kd4 {[%clk 0:00:55]}  a1=Q# {[%clk 0:02:12]} 0-1


[Site "https://www.chess.com"]

[Event "Titled Tuesday Blitz May 2 Late 2023"]
[White "Lohia, Sohum"]
[Black "Koc, Przemyslaw"]
[WhiteFideId "5819369"]
[BlackFideId "1109081"]
[WhiteElo "2036"]
[BlackElo "2161"]
[Result "0-1"]
[Round "03"]
[TimeControl "180+2"]
[Date "2023.05.02"]
[WhiteClock "0:00:20"]
[BlackClock "0:01:29"]

1. e4 {[%clk 0:03:00]}  e5 {[%clk 0:02:59]} 2. Nf3 {[%clk 0:02:43]}  Nf6 {[%clk 0:02:59]} 3. Nc3 {[%clk 0:02:38]}  Nc6 {[%clk 0:02:58]} 4. g3 {[%clk 0:02:37]}  d5 {[%clk 0:02:57]} 5. exd5 {[%clk 0:02:36]}  Nxd5 {[%clk 0:02:58]} 6. Bg2 {[%clk 0:02:36]}  Be6 {[%clk 0:02:56]} 7. O-O {[%clk 0:02:36]}  Be7 {[%clk 0:02:51]} 8. Re1 {[%clk 0:02:35]}  f6 {[%clk 0:02:51]} 9. d4 {[%clk 0:02:36]}  Nxc3 {[%clk 0:02:45]} 10. bxc3 {[%clk 0:02:35]}  O-O {[%clk 0:02:45]} 11. Bb2 {[%clk 0:01:45]}  Bg4 {[%clk 0:02:35]} 12. h3 {[%clk 0:01:30]}  Bxf3 {[%clk 0:02:31]} 13. Qxf3 {[%clk 0:01:30]}  Bd6 {[%clk 0:02:30]} 14. Rad1 {[%clk 0:01:23]}  Qc8 {[%clk 0:02:28]} 15. Qh5 {[%clk 0:01:10]}  Qe8 {[%clk 0:02:16]} 16. Bd5+ {[%clk 0:00:59]}  Kh8 {[%clk 0:02:16]} 17. Qxe8 {[%clk 0:00:59]}  Rfxe8 {[%clk 0:02:15]} 18. Bxc6 {[%clk 0:00:59]}  bxc6 {[%clk 0:02:15]} 19. c4 {[%clk 0:00:59]}  e4 {[%clk 0:02:09]} 20. Kg2 {[%clk 0:00:50]}  f5 {[%clk 0:02:08]} 21. d5 {[%clk 0:00:50]}  c5 {[%clk 0:02:05]} 22. Bc3 {[%clk 0:00:49]}  Kg8 {[%clk 0:02:03]} 23. Rb1 {[%clk 0:00:49]}  Rab8 {[%clk 0:02:03]} 24. a4 {[%clk 0:00:48]}  Kf7 {[%clk 0:01:59]} 25. f3 {[%clk 0:00:36]}  Rb6 {[%clk 0:01:41]} 26. Ba5 {[%clk 0:00:21]}  Ra6 {[%clk 0:01:35]} 27. Bc3 {[%clk 0:00:20]}  Rxa4 {[%clk 0:01:34]} 28. Ra1 {[%clk 0:00:21]}  exf3+ {[%clk 0:01:31]} 29. Kxf3 {[%clk 0:00:20]}  Rxe1 {[%clk 0:01:29]} 30. Bxe1 {[%clk 0:00:20]}  Rxa1 {[%clk 0:01:29]} 0-1


[Site "https://www.chess.com"]

[Event "Titled Tuesday Blitz May 2 Late 2023"]
[White "Muradli, Mahammad"]
[Black "Ricaurte Lopez, Juan Carlos"]
[WhiteFideId "13409301"]
[BlackFideId "3600327"]
[WhiteElo "2558"]
[BlackElo "2200"]
[Result "1/2-1/2"]
[Round "03"]
[TimeControl "180+2"]
[Date "2023.05.02"]
[WhiteClock "0:00:05"]
[BlackClock "0:00:12"]

1. e4 {[%clk 0:03:00]}  e5 {[%clk 0:02:58]} 2. Nf3 {[%clk 0:03:00]}  d5 {[%clk 0:02:58]} 3. d3 {[%clk 0:02:24]}  dxe4 {[%clk 0:02:55]} 4. dxe4 {[%clk 0:02:25]}  Qxd1+ {[%clk 0:02:54]} 5. Kxd1 {[%clk 0:02:26]}  Bg4 {[%clk 0:02:52]} 6. Nd2 {[%clk 0:02:26]}  Nc6 {[%clk 0:02:51]} 7. h3 {[%clk 0:02:24]}  Bh5 {[%clk 0:02:48]} 8. c3 {[%clk 0:02:24]}  O-O-O {[%clk 0:02:46]} 9. Kc2 {[%clk 0:02:24]}  Bc5 {[%clk 0:02:46]} 10. Bb5 {[%clk 0:02:06]}  Bxf2 {[%clk 0:02:43]} 11. Bxc6 {[%clk 0:02:05]}  bxc6 {[%clk 0:02:40]} 12. Nxe5 {[%clk 0:02:04]}  Nf6 {[%clk 0:02:29]} 13. Rf1 {[%clk 0:01:58]}  Bg3 {[%clk 0:02:25]} 14. Nxc6 {[%clk 0:01:54]}  Rd7 {[%clk 0:02:11]} 15. Nxa7+ {[%clk 0:01:49]}  Kb7 {[%clk 0:02:11]} 16. Nb5 {[%clk 0:01:42]}  Rhd8 {[%clk 0:02:10]} 17. Nd4 {[%clk 0:01:33]}  Bg6 {[%clk 0:02:05]} 18. Nf5 {[%clk 0:01:23]}  Rxd2+ {[%clk 0:01:38]} 19. Bxd2 {[%clk 0:01:22]}  Nxe4 {[%clk 0:01:38]} 20. Be1 {[%clk 0:00:59]}  Bxe1 {[%clk 0:01:11]} 21. Raxe1 {[%clk 0:01:00]}  Ng3 {[%clk 0:01:10]} 22. Kc1 {[%clk 0:00:41]}  Nxf5 {[%clk 0:01:05]} 23. g4 {[%clk 0:00:38]}  Nd6 {[%clk 0:00:57]} 24. b3 {[%clk 0:00:35]}  h5 {[%clk 0:00:56]} 25. c4 {[%clk 0:00:34]}  hxg4 {[%clk 0:00:55]} 26. hxg4 {[%clk 0:00:34]}  Kc6 {[%clk 0:00:54]} 27. Kb2 {[%clk 0:00:34]}  Rh8 {[%clk 0:00:50]} 28. Rf2 {[%clk 0:00:29]}  Rh3 {[%clk 0:00:46]} 29. Re5 {[%clk 0:00:23]}  Rg3 {[%clk 0:00:39]} 30. a4 {[%clk 0:00:06]}  Ne4 {[%clk 0:00:35]} 31. Rf4 {[%clk 0:00:03]}  Nc5 {[%clk 0:00:34]} 32. Rd4 {[%clk 0:00:01]}  Nd3+ {[%clk 0:00:31]} 33. Rxd3 {[%clk 0:00:02]}  Bxd3 {[%clk 0:00:29]} 34. g5 {[%clk 0:00:02]}  Bg6 {[%clk 0:00:27]} 35. a5 {[%clk 0:00:02]}  Rg2+ {[%clk 0:00:25]} 36. Kc3 {[%clk 0:00:02]}  Ra2 {[%clk 0:00:23]} 37. Kb4 {[%clk 0:00:02]}  Kd6 {[%clk 0:00:22]} 38. Rd5+ {[%clk 0:00:02]}  Kc6 {[%clk 0:00:22]} 39. Kc3 {[%clk 0:00:03]}  f5 {[%clk 0:00:16]} 40. gxf6 {[%clk 0:00:03]}  gxf6 {[%clk 0:00:16]} 41. b4 {[%clk 0:00:04]}  f5 {[%clk 0:00:16]} 42. Re5 {[%clk 0:00:04]}  Kd6 {[%clk 0:00:15]} 43. Rd5+ {[%clk 0:00:05]}  Ke6 {[%clk 0:00:14]} 44. Rc5 {[%clk 0:00:05]}  Kd7 {[%clk 0:00:14]} 45. Rd5+ {[%clk 0:00:04]}  Ke6 {[%clk 0:00:13]} 46. Rc5 {[%clk 0:00:04]}  Kd7 {[%clk 0:00:12]} 47. Rd5+ {[%clk 0:00:05]}  Ke6 {[%clk 0:00:12]} 1/2-1/2


[Site "https://www.chess.com"]

[Event "Titled Tuesday Blitz May 2 Late 2023"]
[White "Elissalt Cardenas, Hector"]
[Black "Bjelobrk, Igor"]
[WhiteFideId "3500632"]
[BlackFideId "4300726"]
[WhiteElo "2202"]
[BlackElo "2335"]
[Result "1/2-1/2"]
[Round "03"]
[TimeControl "180+2"]
[Date "2023.05.02"]
[WhiteClock "0:00:06"]
[BlackClock "0:00:07"]

1. d4 {[%clk 0:02:57]}  e6 {[%clk 0:02:58]} 2. c4 {[%clk 0:02:54]}  Bb4+ {[%clk 0:02:56]} 3. Bd2 {[%clk 0:02:46]}  Bxd2+ {[%clk 0:02:53]} 4. Qxd2 {[%clk 0:02:45]}  f5 {[%clk 0:02:50]} 5. g3 {[%clk 0:02:42]}  Nf6 {[%clk 0:02:50]} 6. Bg2 {[%clk 0:02:41]}  O-O {[%clk 0:02:49]} 7. Nc3 {[%clk 0:02:38]}  d5 {[%clk 0:02:48]} 8. Nf3 {[%clk 0:02:34]}  c6 {[%clk 0:02:46]} 9. O-O {[%clk 0:02:32]}  Nbd7 {[%clk 0:02:44]} 10. Qd3 {[%clk 0:02:20]}  Ne4 {[%clk 0:02:38]} 11. Rac1 {[%clk 0:02:11]}  Qe7 {[%clk 0:02:37]} 12. Qe3 {[%clk 0:02:06]}  Nd6 {[%clk 0:02:25]} 13. cxd5 {[%clk 0:01:58]}  Nf6 {[%clk 0:02:11]} 14. dxc6 {[%clk 0:01:56]}  bxc6 {[%clk 0:02:12]} 15. Ne5 {[%clk 0:01:53]}  Nd5 {[%clk 0:02:05]} 16. Qd2 {[%clk 0:01:40]}  Bb7 {[%clk 0:02:03]} 17. Nxd5 {[%clk 0:01:27]}  cxd5 {[%clk 0:02:02]} 18. Rc5 {[%clk 0:01:23]}  Rac8 {[%clk 0:01:12]} 19. Rfc1 {[%clk 0:01:21]}  Rfd8 {[%clk 0:00:57]} 20. Qa5 {[%clk 0:01:19]}  Rxc5 {[%clk 0:00:31]} 21. dxc5 {[%clk 0:01:13]}  Nc8 {[%clk 0:00:30]} 22. c6 {[%clk 0:01:05]}  Ba8 {[%clk 0:00:30]} 23. c7 {[%clk 0:01:02]}  Re8 {[%clk 0:00:30]} 24. Qc5 {[%clk 0:00:56]}  Kf8 {[%clk 0:00:28]} 25. e3 {[%clk 0:00:32]}  Qxc5 {[%clk 0:00:25]} 26. Rxc5 {[%clk 0:00:31]}  Ke7 {[%clk 0:00:25]} 27. f4 {[%clk 0:00:31]}  Kd6 {[%clk 0:00:25]} 28. b4 {[%clk 0:00:31]}  Re7 {[%clk 0:00:23]} 29. Kf2 {[%clk 0:00:16]}  Rxc7 {[%clk 0:00:23]} 30. Rxc7 {[%clk 0:00:16]}  Kxc7 {[%clk 0:00:24]} 31. Ke2 {[%clk 0:00:16]}  Nd6 {[%clk 0:00:20]} 32. Kd3 {[%clk 0:00:16]}  Nc4 {[%clk 0:00:17]} 33. Kd4 {[%clk 0:00:14]}  Nd2 {[%clk 0:00:11]} 34. a4 {[%clk 0:00:12]}  Kd6 {[%clk 0:00:07]} 35. a5 {[%clk 0:00:10]}  Bb7 {[%clk 0:00:06]} 36. g4 {[%clk 0:00:08]}  fxg4 {[%clk 0:00:05]} 37. Nxg4 {[%clk 0:00:07]}  Nc4 {[%clk 0:00:05]} 38. Ne5 {[%clk 0:00:07]}  Nxe5 {[%clk 0:00:06]} 39. fxe5+ {[%clk 0:00:07]}  Kc6 {[%clk 0:00:06]} 40. Bf1 {[%clk 0:00:07]}  a6 {[%clk 0:00:06]} 41. Bd3 {[%clk 0:00:07]}  h6 {[%clk 0:00:06]} 42. Kc3 {[%clk 0:00:07]}  Bc8 {[%clk 0:00:05]} 43. h4 {[%clk 0:00:06]}  Bb7 {[%clk 0:00:06]} 44. h5 {[%clk 0:00:06]}  Bc8 {[%clk 0:00:06]} 45. Bg6 {[%clk 0:00:06]}  Bb7 {[%clk 0:00:06]} 46. Bd3 {[%clk 0:00:06]}  Bc8 {[%clk 0:00:07]} 47. Bg6 {[%clk 0:00:06]}  Bb7 {[%clk 0:00:07]} 48. Bd3 {[%clk 0:00:06]} 1/2-1/2


[Site "https://www.chess.com"]

[Event "Titled Tuesday Blitz May 2 Late 2023"]
[White "Dushyant Sharma"]
[Black "Gabdushev, Ruslan"]
[WhiteFideId "25065130"]
[BlackFideId "4137833"]
[WhiteElo "2198"]
[BlackElo "2233"]
[Result "1-0"]
[Round "03"]
[TimeControl "180+2"]
[Date "2023.05.02"]
[WhiteClock "0:02:23"]
[BlackClock "0:01:50"]

1. e4 {[%clk 0:03:00]}  Nc6 {[%clk 0:02:58]} 2. d4 {[%clk 0:02:56]}  d5 {[%clk 0:02:58]} 3. e5 {[%clk 0:02:54]}  Bf5 {[%clk 0:02:57]} 4. Nc3 {[%clk 0:02:54]}  Qd7 {[%clk 0:02:55]} 5. Be3 {[%clk 0:02:53]}  f6 {[%clk 0:02:53]} 6. f4 {[%clk 0:02:52]}  h5 {[%clk 0:02:52]} 7. Qd2 {[%clk 0:02:50]}  h4 {[%clk 0:02:48]} 8. O-O-O {[%clk 0:02:50]}  e6 {[%clk 0:02:46]} 9. Nf3 {[%clk 0:02:50]}  O-O-O {[%clk 0:02:44]} 10. Be2 {[%clk 0:02:49]}  Nge7 {[%clk 0:02:41]} 11. Rhg1 {[%clk 0:02:47]}  Be4 {[%clk 0:02:33]} 12. Qe1 {[%clk 0:02:44]}  h3 {[%clk 0:02:28]} 13. g4 {[%clk 0:02:42]}  Kb8 {[%clk 0:02:21]} 14. Nxe4 {[%clk 0:02:38]}  dxe4 {[%clk 0:02:20]} 15. Nd2 {[%clk 0:02:38]}  Nxd4 {[%clk 0:02:12]} 16. exf6 {[%clk 0:02:34]}  gxf6 {[%clk 0:01:55]} 17. Bxd4 {[%clk 0:02:26]}  Qxd4 {[%clk 0:01:50]} 18. Nc4 {[%clk 0:02:23]} 1-0


[Site "https://www.chess.com"]

[Event "Titled Tuesday Blitz May 2 Late 2023"]
[White "Cruz, William Ferreira Da"]
[Black "Ansh M Shah"]
[WhiteFideId "2118050"]
[BlackFideId "25033379"]
[WhiteElo "2223"]
[BlackElo "2084"]
[Result "0-1"]
[Round "03"]
[TimeControl "180+2"]
[Date "2023.05.02"]
[WhiteClock "0:00:02"]
[BlackClock "0:00:43"]

1. d4 {[%clk 0:02:59]}  Nf6 {[%clk 0:03:00]} 2. Nf3 {[%clk 0:02:58]}  e6 {[%clk 0:03:00]} 3. c4 {[%clk 0:02:55]}  d5 {[%clk 0:03:00]} 4. Nc3 {[%clk 0:02:55]}  Bb4 {[%clk 0:02:59]} 5. Bg5 {[%clk 0:02:53]}  O-O {[%clk 0:02:59]} 6. e3 {[%clk 0:02:53]}  c5 {[%clk 0:02:58]} 7. cxd5 {[%clk 0:02:51]}  Qa5 {[%clk 0:02:57]} 8. Bxf6 {[%clk 0:02:40]}  Bxc3+ {[%clk 0:02:56]} 9. bxc3 {[%clk 0:02:40]}  Qxc3+ {[%clk 0:02:57]} 10. Nd2 {[%clk 0:02:39]}  gxf6 {[%clk 0:02:57]} 11. Rc1 {[%clk 0:02:37]}  Qa3 {[%clk 0:02:57]} 12. dxe6 {[%clk 0:02:07]}  Bxe6 {[%clk 0:02:55]} 13. Rxc5 {[%clk 0:01:56]}  Na6 {[%clk 0:02:53]} 14. Rc1 {[%clk 0:01:41]}  Rac8 {[%clk 0:02:51]} 15. Bc4 {[%clk 0:01:26]}  b5 {[%clk 0:02:13]} 16. d5 {[%clk 0:01:23]}  Bxd5 {[%clk 0:02:07]} 17. Qg4+ {[%clk 0:01:17]}  Kh8 {[%clk 0:02:05]} 18. O-O {[%clk 0:01:14]}  Bxc4 {[%clk 0:01:59]} 19. Qf4 {[%clk 0:00:53]}  Qe7 {[%clk 0:01:41]} 20. Nxc4 {[%clk 0:00:53]}  bxc4 {[%clk 0:01:41]} 21. Rxc4 {[%clk 0:00:53]}  Rxc4 {[%clk 0:01:41]} 22. Qxc4 {[%clk 0:00:54]}  Nc7 {[%clk 0:01:34]} 23. Rb1 {[%clk 0:00:52]}  Ne6 {[%clk 0:01:34]} 24. Qc6 {[%clk 0:00:45]}  Rd8 {[%clk 0:01:29]} 25. h3 {[%clk 0:00:41]}  Kg7 {[%clk 0:01:23]} 26. Rb7 {[%clk 0:00:37]}  Rd1+ {[%clk 0:01:15]} 27. Kh2 {[%clk 0:00:36]}  Qd6+ {[%clk 0:01:14]} 28. Qxd6 {[%clk 0:00:34]}  Rxd6 {[%clk 0:01:15]} 29. Rxa7 {[%clk 0:00:34]}  Rd2 {[%clk 0:01:15]} 30. Kg1 {[%clk 0:00:30]}  Nc5 {[%clk 0:01:14]} 31. f3 {[%clk 0:00:25]}  Re2 {[%clk 0:00:54]} 32. e4 {[%clk 0:00:24]}  Nd3 {[%clk 0:00:51]} 33. Kf1 {[%clk 0:00:19]}  Rf2+ {[%clk 0:00:50]} 34. Kg1 {[%clk 0:00:18]}  Rb2 {[%clk 0:00:51]} 35. a4 {[%clk 0:00:06]}  Nf4 {[%clk 0:00:50]} 36. a5 {[%clk 0:00:05]}  Rxg2+ {[%clk 0:00:49]} 37. Kf1 {[%clk 0:00:06]}  Ra2 {[%clk 0:00:49]} 38. a6 {[%clk 0:00:06]}  Nxh3 {[%clk 0:00:49]} 39. Ra8 {[%clk 0:00:05]}  Rf2+ {[%clk 0:00:43]} 40. Ke1 {[%clk 0:00:05]}  Rxf3 {[%clk 0:00:44]} 41. a7 {[%clk 0:00:03]}  Ra3 {[%clk 0:00:44]} 42. Ke2 {[%clk 0:00:02]}  Nf4+ {[%clk 0:00:44]} 43. Kf2 {[%clk 0:00:02]}  Ne6 {[%clk 0:00:43]} 0-1


[Site "https://www.chess.com"]

[Event "Titled Tuesday Blitz May 2 Late 2023"]
[White "Gelbenegger, Patrick"]
[Black "Jaskolka, Tomasz"]
[WhiteFideId "1638220"]
[BlackFideId "1170791"]
[WhiteElo "2160"]
[BlackElo "2155"]
[Result "0-1"]
[Round "03"]
[TimeControl "180+2"]
[Date "2023.05.02"]
[WhiteClock "0:00:19"]
[BlackClock "0:00:08"]

1. e4 {[%clk 0:02:57]}  c5 {[%clk 0:03:00]} 2. Nf3 {[%clk 0:02:57]}  e6 {[%clk 0:03:01]} 3. d4 {[%clk 0:02:57]}  cxd4 {[%clk 0:03:01]} 4. Nxd4 {[%clk 0:02:57]}  Nc6 {[%clk 0:03:02]} 5. a3 {[%clk 0:02:57]}  Nf6 {[%clk 0:02:59]} 6. Nc3 {[%clk 0:02:57]}  d5 {[%clk 0:03:00]} 7. Nxc6 {[%clk 0:02:55]}  bxc6 {[%clk 0:03:00]} 8. e5 {[%clk 0:02:55]}  Nd7 {[%clk 0:03:01]} 9. f4 {[%clk 0:02:55]}  f6 {[%clk 0:03:01]} 10. Bd3 {[%clk 0:02:50]}  Bc5 {[%clk 0:02:55]} 11. Qh5+ {[%clk 0:02:48]}  Ke7 {[%clk 0:02:49]} 12. Na4 {[%clk 0:02:41]}  Qa5+ {[%clk 0:02:46]} 13. Nc3 {[%clk 0:02:39]}  d4 {[%clk 0:02:44]} 14. Bd2 {[%clk 0:01:45]}  dxc3 {[%clk 0:02:40]} 15. Bxc3 {[%clk 0:01:44]}  Qb6 {[%clk 0:02:36]} 16. O-O-O {[%clk 0:01:43]}  Be3+ {[%clk 0:01:59]} 17. Kb1 {[%clk 0:01:43]}  Bxf4 {[%clk 0:02:00]} 18. exf6+ {[%clk 0:01:39]}  Nxf6 {[%clk 0:01:58]} 19. Qh4 {[%clk 0:01:34]}  Qc7 {[%clk 0:01:43]} 20. Bb4+ {[%clk 0:01:29]}  c5 {[%clk 0:01:39]} 21. Bxc5+ {[%clk 0:01:17]}  Qxc5 {[%clk 0:01:40]} 22. Qxf4 {[%clk 0:01:17]}  Bb7 {[%clk 0:01:35]} 23. Rhe1 {[%clk 0:01:11]}  Rac8 {[%clk 0:01:28]} 24. Bf5 {[%clk 0:01:09]}  Bd5 {[%clk 0:01:11]} 25. Rxd5 {[%clk 0:01:05]}  Qxd5 {[%clk 0:01:11]} 26. Rxe6+ {[%clk 0:01:04]}  Kf7 {[%clk 0:01:00]} 27. Re1 {[%clk 0:00:51]}  Rhe8 {[%clk 0:00:56]} 28. Rc1 {[%clk 0:00:45]}  Rc4 {[%clk 0:00:50]} 29. Qf2 {[%clk 0:00:43]}  Kg8 {[%clk 0:00:46]} 30. Bd3 {[%clk 0:00:40]}  Rd4 {[%clk 0:00:46]} 31. Rd1 {[%clk 0:00:36]}  Qd6 {[%clk 0:00:34]} 32. Bxh7+ {[%clk 0:00:34]}  Kxh7 {[%clk 0:00:25]} 33. Rxd4 {[%clk 0:00:32]}  Re1+ {[%clk 0:00:23]} 34. Ka2 {[%clk 0:00:33]}  Qe6+ {[%clk 0:00:23]} 35. b3 {[%clk 0:00:33]}  Re2 {[%clk 0:00:20]} 36. Rh4+ {[%clk 0:00:27]}  Kg8 {[%clk 0:00:18]} 37. Qc5 {[%clk 0:00:27]}  Qe7 {[%clk 0:00:12]} 38. Qc4+ {[%clk 0:00:26]}  Qe6 {[%clk 0:00:12]} 39. Qxe6+ {[%clk 0:00:23]}  Rxe6 {[%clk 0:00:11]} 40. Ra4 {[%clk 0:00:24]}  Re7 {[%clk 0:00:12]} 41. Kb2 {[%clk 0:00:24]}  Kf7 {[%clk 0:00:11]} 42. g4 {[%clk 0:00:24]}  Nd5 {[%clk 0:00:11]} 43. h4 {[%clk 0:00:24]}  Nb6 {[%clk 0:00:11]} 44. Ra5 {[%clk 0:00:23]}  Rb7 {[%clk 0:00:11]} 45. Kc3 {[%clk 0:00:20]}  Rc7+ {[%clk 0:00:11]} 46. Kb2 {[%clk 0:00:17]}  Ke6 {[%clk 0:00:10]} 47. h5 {[%clk 0:00:17]}  Nd5 {[%clk 0:00:08]} 48. g5 {[%clk 0:00:16]}  Ne3 {[%clk 0:00:08]} 49. c4 {[%clk 0:00:14]}  Rf7 {[%clk 0:00:04]} 50. h6 {[%clk 0:00:14]}  gxh6 {[%clk 0:00:04]} 51. gxh6 {[%clk 0:00:14]}  Nf5 {[%clk 0:00:05]} 52. Ra6+ {[%clk 0:00:13]}  Ke5 {[%clk 0:00:04]} 53. Kc3 {[%clk 0:00:12]}  Nd6 {[%clk 0:00:04]} 54. Ra5+ {[%clk 0:00:11]}  Ke6 {[%clk 0:00:04]} 55. Rh5 {[%clk 0:00:11]}  Rf3+ {[%clk 0:00:04]} 56. Kb4 {[%clk 0:00:11]}  Rf8 {[%clk 0:00:04]} 57. h7 {[%clk 0:00:12]}  Rb8+ {[%clk 0:00:04]} 58. Kc3 {[%clk 0:00:12]}  Rh8 {[%clk 0:00:04]} 59. b4 {[%clk 0:00:13]}  Ne4+ {[%clk 0:00:04]} 60. Kd4 {[%clk 0:00:13]}  Nf6 {[%clk 0:00:05]} 61. Rh6 {[%clk 0:00:14]}  Kf7 {[%clk 0:00:05]} 62. c5 {[%clk 0:00:14]}  Nxh7 {[%clk 0:00:05]} 63. Kd5 {[%clk 0:00:14]}  Nf6+ {[%clk 0:00:05]} 64. Kc6 {[%clk 0:00:14]}  Rxh6 {[%clk 0:00:05]} 65. Kb7 {[%clk 0:00:14]}  Nd5 {[%clk 0:00:06]} 66. b5 {[%clk 0:00:15]}  Ke7 {[%clk 0:00:06]} 67. c6 {[%clk 0:00:15]}  Kd6 {[%clk 0:00:06]} 68. a4 {[%clk 0:00:16]}  Rh7+ {[%clk 0:00:06]} 69. Ka6 {[%clk 0:00:16]}  Nb4+ {[%clk 0:00:06]} 70. Ka5 {[%clk 0:00:16]}  Nxc6+ {[%clk 0:00:07]} 71. bxc6 {[%clk 0:00:17]}  Kxc6 {[%clk 0:00:08]} 72. Ka6 {[%clk 0:00:18]}  Rh4 {[%clk 0:00:07]} 73. a5 {[%clk 0:00:19]}  Ra4 {[%clk 0:00:07]} 74. Kxa7 {[%clk 0:00:18]}  Rxa5+ {[%clk 0:00:07]} 75. Kb8 {[%clk 0:00:19]}  Ra1 {[%clk 0:00:08]} 0-1


[Site "https://www.chess.com"]